[Event "*** SCC Grand Prix: Titled Tuesday Blitz"]
[Site "Chess.com"]
[Date "2020.09.08"]
[Round "2"]
[White "KNCP_719"]
[Black "VladaSviridova"]
[Result "1-0"]
[WhiteElo "2570"]
[BlackElo "2300"]
[TimeControl "180+1"]
[EndTime "10:18:21 PDT"]
[Termination "KNCP_719 won by checkmate"]

1. Nf3 {[%clk 0:02:57.8]} 1... d5 {[%clk 0:02:59.7]} 2. c4 {[%clk 0:02:56.4]}
2... c6 {[%clk 0:02:59.7]} 3. g3 {[%clk 0:02:56.3]} 3... Nf6 {[%clk 0:02:59.9]}
4. Bg2 {[%clk 0:02:56.5]} 4... dxc4 {[%clk 0:02:58.9]} 5. O-O {[%clk 0:02:54.2]}
5... Nbd7 {[%clk 0:02:58.7]} 6. Na3 {[%clk 0:02:48.1]} 6... Nb6 {[%clk
0:02:57.4]} 7. Qc2 {[%clk 0:02:46.7]} 7... g6 {[%clk 0:02:50.6]} 8. Nxc4 {[%clk
0:02:46.4]} 8... Nxc4 {[%clk 0:02:50.5]} 9. Qxc4 {[%clk 0:02:47.3]} 9... Bg7
{[%clk 0:02:50.8]} 10. d4 {[%clk 0:02:45.2]} 10... O-O {[%clk 0:02:50.6]} 11.
Rd1 {[%clk 0:02:30]} 11... Be6 {[%clk 0:02:50]} 12. Qc2 {[%clk 0:02:27.9]} 12...
Bf5 {[%clk 0:02:48.2]} 13. Qb3 {[%clk 0:02:26.7]} 13... Qb6 {[%clk 0:02:42.8]}
14. Qa3 {[%clk 0:02:21.1]} 14... Rfe8 {[%clk 0:02:35.9]} 15. Ne5 {[%clk
0:02:19.2]} 15... a5 {[%clk 0:02:23.5]} 16. Bf4 {[%clk 0:01:42.9]} 16... Qb4
{[%clk 0:02:12]} 17. Qxb4 {[%clk 0:01:29.9]} 17... axb4 {[%clk 0:02:10.9]} 18.
Nd3 {[%clk 0:01:30.2]} 18... Bxd3 {[%clk 0:01:44.4]} 19. Rxd3 {[%clk 0:01:31.1]}
19... Nd5 {[%clk 0:01:16.1]} 20. Bd2 {[%clk 0:01:30.8]} 20... Red8 {[%clk
0:00:39.6]} 21. e3 {[%clk 0:01:16.5]} 21... e6 {[%clk 0:00:39.4]} 22. Bxd5
{[%clk 0:01:15.1]} 22... Rxd5 {[%clk 0:00:39.1]} 23. Bxb4 {[%clk 0:01:15.5]}
23... e5 {[%clk 0:00:33]} 24. Bc5 {[%clk 0:00:48.8]} 24... exd4 {[%clk
0:00:32.8]} 25. exd4 {[%clk 0:00:49.3]} 25... Ra5 {[%clk 0:00:29.5]} 26. Re3
{[%clk 0:00:34.1]} 26... Ra8 {[%clk 0:00:24.7]} 27. Re7 {[%clk 0:00:24.6]} 27...
Bf8 {[%clk 0:00:18.9]} 28. Rxb7 {[%clk 0:00:23.9]} 28... Bxc5 {[%clk 0:00:18.5]}
29. dxc5 {[%clk 0:00:24.8]} 29... Rxc5 {[%clk 0:00:18.7]} 30. a3 {[%clk
0:00:17]} 30... Rc2 {[%clk 0:00:17.9]} 31. Re1 {[%clk 0:00:15.4]} 31... Rd8
{[%clk 0:00:15.4]} 32. Ree7 {[%clk 0:00:14.4]} 32... Rf8 {[%clk 0:00:14.7]} 33.
a4 {[%clk 0:00:13.9]} 33... Rc5 {[%clk 0:00:13.2]} 34. b4 {[%clk 0:00:13]} 34...
Rc1+ {[%clk 0:00:13.2]} 35. Kg2 {[%clk 0:00:12.9]} 35... Ra1 {[%clk 0:00:13.3]}
36. a5 {[%clk 0:00:13.1]} 36... Kg7 {[%clk 0:00:13]} 37. Rec7 {[%clk 0:00:10.8]}
37... Rb1 {[%clk 0:00:11.5]} 38. Rxc6 {[%clk 0:00:10]} 38... Re8 {[%clk
0:00:11.2]} 39. Rcc7 {[%clk 0:00:10]} 39... Re2 {[%clk 0:00:10.7]} 40. Rxf7+
{[%clk 0:00:09.5]} 40... Kh6 {[%clk 0:00:10.8]} 41. h4 {[%clk 0:00:08.2]} 41...
Kh5 {[%clk 0:00:10]} 42. Kf3 {[%clk 0:00:08.2]} 42... Rc2 {[%clk 0:00:07.6]} 43.
Rxh7# {[%clk 0:00:07.4]} 1-0

[Event "*** SCC Grand Prix: Titled Tuesday Blitz"]
[Site "Chess.com"]
[Date "2020.09.08"]
[Round "2"]
[White "Oneofmyturns"]
[Black "dosto07"]
[Result "1-0"]
[WhiteElo "2652"]
[BlackElo "2322"]
[TimeControl "180+1"]
[EndTime "10:18:22 PDT"]
[Termination "Oneofmyturns won by resignation"]

1. d4 {[%clk 0:03:00.9]} 1... d5 {[%clk 0:02:59.3]} 2. c4 {[%clk 0:03:01.3]}
2... dxc4 {[%clk 0:02:59.6]} 3. e4 {[%clk 0:03:00.7]} 3... e5 {[%clk 0:02:57.1]}
4. Nf3 {[%clk 0:03:00.4]} 4... exd4 {[%clk 0:02:56.3]} 5. Bxc4 {[%clk
0:03:00.9]} 5... Nc6 {[%clk 0:02:56]} 6. O-O {[%clk 0:02:59.6]} 6... Be6 {[%clk
0:02:56.4]} 7. Bxe6 {[%clk 0:02:57.1]} 7... fxe6 {[%clk 0:02:56.2]} 8. Qb3
{[%clk 0:02:57.7]} 8... Qd7 {[%clk 0:02:56.5]} 9. Qxb7 {[%clk 0:02:57.4]} 9...
Rb8 {[%clk 0:02:57.1]} 10. Qa6 {[%clk 0:02:57.9]} 10... Nf6 {[%clk 0:02:57.4]}
11. Nbd2 {[%clk 0:02:52.8]} 11... Bd6 {[%clk 0:02:57]} 12. Re1 {[%clk
0:02:35.3]} 12... Ng4 {[%clk 0:02:44.7]} 13. Nc4 {[%clk 0:02:27.6]} 13... Nge5
{[%clk 0:02:33.4]} 14. Nfxe5 {[%clk 0:02:17.5]} 14... Nxe5 {[%clk 0:02:29]} 15.
Nxe5 {[%clk 0:02:10.8]} 15... Bxe5 {[%clk 0:02:28.1]} 16. f4 {[%clk 0:02:10]}
16... Bd6 {[%clk 0:02:22]} 17. Qxa7 {[%clk 0:02:09.6]} 17... O-O {[%clk
0:02:05.1]} 18. Qxd4 {[%clk 0:02:06.5]} 18... Qe7 {[%clk 0:01:51.2]} 19. Be3
{[%clk 0:01:38.7]} 19... Bxf4 {[%clk 0:01:49.8]} 20. Rac1 {[%clk 0:01:33.1]}
20... Bxe3+ {[%clk 0:01:42.5]} 21. Rxe3 {[%clk 0:01:34]} 21... Qg5 {[%clk
0:01:31.7]} 22. b3 {[%clk 0:01:08.6]} 22... Rbd8 {[%clk 0:01:14]} 23. Qc3 {[%clk
0:01:07.4]} 23... Qf4 {[%clk 0:01:02.3]} 24. h3 {[%clk 0:01:00.4]} 24... Qf2+
{[%clk 0:01:00.3]} 25. Kh2 {[%clk 0:01:00.5]} 25... Rd2 {[%clk 0:00:51.8]} 26.
Rg3 {[%clk 0:01:00.1]} 26... Rf7 {[%clk 0:00:33.5]} 27. Qe5 {[%clk 0:00:41.2]}
27... Rd6 {[%clk 0:00:15.3]} 28. Rxc7 {[%clk 0:00:35.3]} 28... Rxc7 {[%clk
0:00:11.5]} 29. Qxd6 {[%clk 0:00:35.7]} 29... Rf7 {[%clk 0:00:06.9]} 30. Qxe6
{[%clk 0:00:29.2]} 30... h6 {[%clk 0:00:06.4]} 31. a4 {[%clk 0:00:26.8]} 31...
Qa7 {[%clk 0:00:02.6]} 32. e5 {[%clk 0:00:21.1]} 32... Kh7 {[%clk 0:00:02.4]}
33. Qg6+ {[%clk 0:00:21]} 33... Kh8 {[%clk 0:00:01.6]} 34. e6 {[%clk 0:00:17.5]}
34... Rf8 {[%clk 0:00:01.9]} 35. a5 {[%clk 0:00:12.4]} 35... Qe7 {[%clk
0:00:02.8]} 36. a6 {[%clk 0:00:12.1]} 36... Rf6 {[%clk 0:00:03.7]} 37. a7 {[%clk
0:00:09.9]} 37... Rxg6 {[%clk 0:00:03.2]} 38. a8=Q+ {[%clk 0:00:08.5]} 38... Kh7
{[%clk 0:00:04.1]} 39. Qe4 {[%clk 0:00:08.8]} 39... Qxe6 {[%clk 0:00:04.5]} 40.
Qxg6+ {[%clk 0:00:08.9]} 40... Qxg6 {[%clk 0:00:04]} 41. Rxg6 {[%clk 0:00:09.8]}
41... Kxg6 {[%clk 0:00:04.7]} 42. Kg3 {[%clk 0:00:10.1]} 42... Kf6 {[%clk
0:00:05.6]} 43. Kg4 {[%clk 0:00:10.4]} 43... Ke5 {[%clk 0:00:06.5]} 44. Kh5
{[%clk 0:00:10.8]} 44... Kd5 {[%clk 0:00:07.4]} 45. Kg6 {[%clk 0:00:11.3]} 45...
Kc5 {[%clk 0:00:08.3]} 46. Kxg7 {[%clk 0:00:11.9]} 46... Kb4 {[%clk 0:00:09.2]}
47. Kxh6 {[%clk 0:00:12.4]} 47... Kxb3 {[%clk 0:00:10.1]} 48. g4 {[%clk
0:00:12.9]} 48... Kc4 {[%clk 0:00:09.9]} 49. g5 {[%clk 0:00:13.8]} 1-0

[Event "*** SCC Grand Prix: Titled Tuesday Blitz"]
[Site "Chess.com"]
[Date "2020.09.08"]
[Round "2"]
[White "AlexOstrovskiy"]
[Black "Olga_Girya"]
[Result "1-0"]
[WhiteElo "2749"]
[BlackElo "2502"]
[TimeControl "180+1"]
[EndTime "10:18:23 PDT"]
[Termination "AlexOstrovskiy won by resignation"]

1. d4 {[%clk 0:03:00.9]} 1... d5 {[%clk 0:02:59]} 2. Bf4 {[%clk 0:03:01.4]} 2...
c5 {[%clk 0:02:58.1]} 3. e4 {[%clk 0:02:58.9]} 3... cxd4 {[%clk 0:02:32.1]} 4.
Qxd4 {[%clk 0:02:57.8]} 4... Nc6 {[%clk 0:02:24.4]} 5. Qxd5 {[%clk 0:02:50]}
5... Qxd5 {[%clk 0:02:24.1]} 6. exd5 {[%clk 0:02:50.9]} 6... Nb4 {[%clk
0:02:24.3]} 7. Nc3 {[%clk 0:02:21.3]} 7... Nxc2+ {[%clk 0:02:21.8]} 8. Kd2
{[%clk 0:02:21.6]} 8... Nxa1 {[%clk 0:02:21]} 9. Nb5 {[%clk 0:02:22.2]} 9... Nf6
{[%clk 0:02:04.5]} 10. Nc7+ {[%clk 0:02:20.4]} 10... Kd8 {[%clk 0:02:04.8]} 11.
Nxa8 {[%clk 0:02:14.7]} 11... Nxd5 {[%clk 0:02:04.7]} 12. Bb8 {[%clk 0:02:15.4]}
12... Bf5 {[%clk 0:01:54.6]} 13. Nf3 {[%clk 0:02:02.5]} 13... e6 {[%clk
0:01:52.9]} 14. Bxa7 {[%clk 0:01:32.3]} 14... Bb4+ {[%clk 0:01:52.6]} 15. Ke2
{[%clk 0:01:32.8]} 15... Nc2 {[%clk 0:01:32.9]} 16. Nb6 {[%clk 0:01:25.6]} 16...
Nxb6 {[%clk 0:01:03.7]} 17. Bxb6+ {[%clk 0:01:26.5]} 17... Ke7 {[%clk
0:01:03.9]} 18. g3 {[%clk 0:01:11.7]} 18... Rc8 {[%clk 0:00:50.3]} 19. Bg2
{[%clk 0:01:11.6]} 19... Rc6 {[%clk 0:00:48.1]} 20. Bd4 {[%clk 0:01:02.9]} 20...
Nxd4+ {[%clk 0:00:28.9]} 21. Nxd4 {[%clk 0:01:03.8]} 21... Rc7 {[%clk
0:00:20.5]} 22. a3 {[%clk 0:00:58.9]} 22... Bc5 {[%clk 0:00:18.8]} 23. Rc1
{[%clk 0:00:52.6]} 23... b6 {[%clk 0:00:18.8]} 24. Nb5 {[%clk 0:00:26]} 24...
Rd7 {[%clk 0:00:18.1]} 25. Rc3 {[%clk 0:00:26.7]} 25... e5 {[%clk 0:00:14.6]}
26. b4 {[%clk 0:00:24]} 26... Bd4 {[%clk 0:00:14.7]} 27. Rc6 {[%clk 0:00:24.3]}
27... Bg4+ {[%clk 0:00:03.5]} 28. Bf3 {[%clk 0:00:21.7]} 28... Be6 {[%clk
0:00:03.5]} 29. Nxd4 {[%clk 0:00:18.6]} 29... exd4 {[%clk 0:00:03.5]} 30. Rxb6
{[%clk 0:00:19.5]} 30... Bc4+ {[%clk 0:00:03.7]} 31. Kd2 {[%clk 0:00:17.3]}
31... Ra7 {[%clk 0:00:04.1]} 32. Rb7+ {[%clk 0:00:15.1]} 32... Rxb7 {[%clk
0:00:03.9]} 33. Bxb7 {[%clk 0:00:16]} 33... Kd6 {[%clk 0:00:04.7]} 34. Be4
{[%clk 0:00:15.7]} 34... Kc7 {[%clk 0:00:05.6]} 35. Bxh7 {[%clk 0:00:14]} 35...
g6 {[%clk 0:00:05.6]} 36. h4 {[%clk 0:00:14.6]} 36... Kd6 {[%clk 0:00:05.8]} 37.
h5 {[%clk 0:00:08.9]} 37... gxh5 {[%clk 0:00:02.9]} 38. Bd3 {[%clk 0:00:09.8]}
38... Bd5 {[%clk 0:00:01.6]} 39. Be2 {[%clk 0:00:09.9]} 39... h4 {[%clk
0:00:01.5]} 40. gxh4 {[%clk 0:00:09.1]} 40... Ke5 {[%clk 0:00:02.4]} 41. a4
{[%clk 0:00:06.6]} 41... Kf4 {[%clk 0:00:03.3]} 42. a5 {[%clk 0:00:06.7]} 1-0

[Event "*** SCC Grand Prix: Titled Tuesday Blitz"]
[Site "Chess.com"]
[Date "2020.09.08"]
[Round "2"]
[White "uthoang"]
[Black "eightbyeightchess"]
[Result "0-1"]
[WhiteElo "2211"]
[BlackElo "2438"]
[TimeControl "180+1"]
[EndTime "10:18:23 PDT"]
[Termination "eightbyeightchess won by resignation"]

1. d4 {[%clk 0:03:00.9]} 1... d5 {[%clk 0:02:59.6]} 2. Nf3 {[%clk 0:02:58.8]}
2... Nf6 {[%clk 0:02:57.2]} 3. Bf4 {[%clk 0:02:58.6]} 3... Bf5 {[%clk
0:02:54.4]} 4. e3 {[%clk 0:02:58.6]} 4... e6 {[%clk 0:02:54]} 5. Nbd2 {[%clk
0:02:58.8]} 5... Bd6 {[%clk 0:02:52.2]} 6. Ne5 {[%clk 0:02:58.9]} 6... O-O
{[%clk 0:02:51.2]} 7. Be2 {[%clk 0:02:59]} 7... Nbd7 {[%clk 0:02:48]} 8. g4
{[%clk 0:02:57.3]} 8... Bg6 {[%clk 0:02:46.1]} 9. h4 {[%clk 0:02:56.4]} 9... h6
{[%clk 0:02:18.3]} 10. Nxg6 {[%clk 0:02:55.3]} 10... fxg6 {[%clk 0:02:18.4]} 11.
Bxd6 {[%clk 0:02:54.1]} 11... cxd6 {[%clk 0:02:19.3]} 12. c3 {[%clk 0:02:37.8]}
12... e5 {[%clk 0:02:08.1]} 13. f3 {[%clk 0:02:25]} 13... exd4 {[%clk
0:02:01.6]} 14. exd4 {[%clk 0:02:24]} 14... Qe7 {[%clk 0:02:00.5]} 15. Qc2
{[%clk 0:02:13.8]} 15... Rae8 {[%clk 0:01:59.3]} 16. Rh2 {[%clk 0:02:14.1]}
16... b5 {[%clk 0:01:45.4]} 17. O-O-O {[%clk 0:02:11.3]} 17... b4 {[%clk
0:01:45.8]} 18. g5 {[%clk 0:01:42.1]} 18... bxc3 {[%clk 0:01:36.3]} 19. bxc3
{[%clk 0:01:41.8]} 19... Nh5 {[%clk 0:01:26.8]} 20. gxh6 {[%clk 0:01:30.7]}
20... Nf4 {[%clk 0:01:26.6]} 21. Bd3 {[%clk 0:01:25.5]} 21... Qe3 {[%clk
0:01:17.5]} 22. Bxg6 {[%clk 0:01:06.1]} 22... Rc8 {[%clk 0:00:31.7]} 23. Kb2
{[%clk 0:00:55.4]} 23... Nxg6 {[%clk 0:00:30.7]} 24. Qxg6 {[%clk 0:00:38.6]}
24... Qxc3+ {[%clk 0:00:30.2]} 25. Kb1 {[%clk 0:00:39.1]} 25... Rb8+ {[%clk
0:00:30.1]} 26. Nb3 {[%clk 0:00:36.4]} 26... Rxb3+ {[%clk 0:00:25.2]} 27. axb3
{[%clk 0:00:37.3]} 27... Qxb3+ {[%clk 0:00:26.1]} 28. Rb2 {[%clk 0:00:36.7]}
28... Qxd1+ {[%clk 0:00:26.1]} 29. Ka2 {[%clk 0:00:34.4]} 29... Qxd4 {[%clk
0:00:16.9]} 30. Qe6+ {[%clk 0:00:21.4]} 30... Kh7 {[%clk 0:00:11.3]} 31. hxg7
{[%clk 0:00:20.8]} 31... Qxg7 {[%clk 0:00:09.9]} 32. Qxd5 {[%clk 0:00:19.5]}
32... Nf6 {[%clk 0:00:09]} 33. Qxd6 {[%clk 0:00:18.6]} 33... Rf7 {[%clk
0:00:07.4]} 34. Qd3+ {[%clk 0:00:18.4]} 34... Kh6 {[%clk 0:00:06.4]} 35. Qe3+
{[%clk 0:00:17.8]} 35... Kh7 {[%clk 0:00:06.3]} 36. Qd3+ {[%clk 0:00:18.1]}
36... Qg6 {[%clk 0:00:06.5]} 37. Qc3 {[%clk 0:00:17.1]} 37... Nd5 {[%clk
0:00:05.1]} 38. Qb3 {[%clk 0:00:16.6]} 38... Rd7 {[%clk 0:00:04.6]} 39. Rc2
{[%clk 0:00:16.1]} 39... Qa6+ {[%clk 0:00:04]} 40. Kb2 {[%clk 0:00:16.1]} 40...
Rb7 {[%clk 0:00:04]} 41. Qxb7+ {[%clk 0:00:14.4]} 41... Qxb7+ {[%clk 0:00:04.9]}
42. Kc1 {[%clk 0:00:14.6]} 42... Nb4 {[%clk 0:00:05.1]} 43. Rd2 {[%clk
0:00:15.5]} 43... Qc6+ {[%clk 0:00:05.1]} 44. Kb2 {[%clk 0:00:15.5]} 44... Qxf3
{[%clk 0:00:05.6]} 45. Rd7+ {[%clk 0:00:14.5]} 45... Kh6 {[%clk 0:00:06.1]} 46.
Rb7 {[%clk 0:00:15.4]} 46... Qxb7 {[%clk 0:00:05.3]} 47. Kc3 {[%clk 0:00:15.7]}
47... Nc6 {[%clk 0:00:05.1]} 48. Kd2 {[%clk 0:00:16.6]} 48... Kh5 {[%clk
0:00:05.6]} 49. Ke3 {[%clk 0:00:17.5]} 49... Kxh4 {[%clk 0:00:06.3]} 50. Kd3
{[%clk 0:00:17.6]} 50... Qb4 {[%clk 0:00:07.2]} 51. Ke2 {[%clk 0:00:17.7]} 51...
Qd4 {[%clk 0:00:08.1]} 0-1

[Event "*** SCC Grand Prix: Titled Tuesday Blitz"]
[Site "Chess.com"]
[Date "2020.09.08"]
[Round "2"]
[White "glebus008"]
[Black "plumalka"]
[Result "0-1"]
[WhiteElo "2170"]
[BlackElo "2411"]
[TimeControl "180+1"]
[EndTime "10:18:23 PDT"]
[Termination "plumalka won on time"]

1. e4 {[%clk 0:01:14.5]} 1... c5 {[%clk 0:02:58.5]} 2. Nf3 {[%clk 0:01:13.8]}
2... d6 {[%clk 0:02:57]} 3. Nc3 {[%clk 0:01:13]} 3... Nf6 {[%clk 0:02:55.4]} 4.
e5 {[%clk 0:01:13.2]} 4... dxe5 {[%clk 0:02:51.7]} 5. Nxe5 {[%clk 0:01:14.1]}
5... a6 {[%clk 0:02:48.2]} 6. g3 {[%clk 0:01:12.6]} 6... e6 {[%clk 0:02:42.4]}
7. Bg2 {[%clk 0:01:10.9]} 7... Bd6 {[%clk 0:02:41.8]} 8. d4 {[%clk 0:01:09.1]}
8... Qc7 {[%clk 0:02:36.9]} 9. Nc4 {[%clk 0:01:05.7]} 9... cxd4 {[%clk 0:02:31]}
10. Qxd4 {[%clk 0:01:06.6]} 10... Bc5 {[%clk 0:02:30.8]} 11. Qh4 {[%clk
0:01:03.9]} 11... Nc6 {[%clk 0:01:59.6]} 12. O-O {[%clk 0:00:58.4]} 12... b5
{[%clk 0:01:56]} 13. Bf4 {[%clk 0:00:52.9]} 13... Qd7 {[%clk 0:01:14.1]} 14.
Rad1 {[%clk 0:00:50.4]} 14... Nd5 {[%clk 0:01:04]} 15. Nxd5 {[%clk 0:00:47.3]}
15... exd5 {[%clk 0:01:04]} 16. Rxd5 {[%clk 0:00:46.1]} 16... Qe7 {[%clk
0:00:59.2]} 17. Qxe7+ {[%clk 0:00:38.1]} 17... Bxe7 {[%clk 0:00:56.5]} 18. Nd6+
{[%clk 0:00:32.6]} 18... Kf8 {[%clk 0:00:51]} 19. Rc5 {[%clk 0:00:28.7]} 19...
Be6 {[%clk 0:00:15.8]} 20. Bxc6 {[%clk 0:00:26.7]} 20... Rd8 {[%clk 0:00:15.4]}
21. Rd1 {[%clk 0:00:23.3]} 21... g5 {[%clk 0:00:15.2]} 22. Be5 {[%clk
0:00:22.2]} 22... f6 {[%clk 0:00:15.4]} 23. Bc3 {[%clk 0:00:15.6]} 23... Rxd6
{[%clk 0:00:15.1]} 24. Rxd6 {[%clk 0:00:14.4]} 24... Bxd6 {[%clk 0:00:16]} 25.
Bxf6 {[%clk 0:00:13.5]} 25... Bxc5 {[%clk 0:00:12.5]} 26. Bxh8 {[%clk
0:00:12.7]} 26... Bxa2 {[%clk 0:00:12.7]} 27. b3 {[%clk 0:00:11.8]} 27... Bb1
{[%clk 0:00:12.7]} 28. Be4 {[%clk 0:00:10.9]} 28... a5 {[%clk 0:00:12.9]} 29.
Bf6 {[%clk 0:00:09.9]} 29... g4 {[%clk 0:00:11.7]} 30. Bxh7 {[%clk 0:00:07.6]}
30... a4 {[%clk 0:00:11.7]} 31. bxa4 {[%clk 0:00:07.3]} 31... bxa4 {[%clk
0:00:12.6]} 32. Bf5 {[%clk 0:00:05.2]} 32... Kf7 {[%clk 0:00:12.6]} 33. Ba1
{[%clk 0:00:04.1]} 33... Be7 {[%clk 0:00:12.3]} 34. Bxg4 {[%clk 0:00:04]} 34...
Bf6 {[%clk 0:00:12.6]} 35. Bd1 {[%clk 0:00:03.8]} 35... Bxa1 {[%clk 0:00:11.3]}
36. h4 {[%clk 0:00:04.7]} 36... a3 {[%clk 0:00:11.3]} 37. h5 {[%clk 0:00:05.6]}
37... Bc3 {[%clk 0:00:11.1]} 38. h6 {[%clk 0:00:06.5]} 38... Kg8 {[%clk
0:00:11.4]} 39. h7+ {[%clk 0:00:07.4]} 39... Kxh7 {[%clk 0:00:11.9]} 40. g4
{[%clk 0:00:07.1]} 40... a2 {[%clk 0:00:12.4]} 0-1

[Event "*** SCC Grand Prix: Titled Tuesday Blitz"]
[Site "Chess.com"]
[Date "2020.09.08"]
[Round "2"]
[White "Jungle_Jaguar"]
[Black "THE_PLAYER6"]
[Result "1-0"]
[WhiteElo "2682"]
[BlackElo "2459"]
[TimeControl "180+1"]
[EndTime "10:18:24 PDT"]
[Termination "Jungle_Jaguar won by resignation"]

1. e4 {[%clk 0:03:00.9]} 1... e5 {[%clk 0:02:53.6]} 2. Nf3 {[%clk 0:03:00.5]}
2... Nc6 {[%clk 0:02:54.1]} 3. Bb5 {[%clk 0:02:59.8]} 3... g6 {[%clk 0:02:52.9]}
4. O-O {[%clk 0:02:59.2]} 4... Bg7 {[%clk 0:02:52.8]} 5. c3 {[%clk 0:02:59.6]}
5... Nge7 {[%clk 0:02:53.3]} 6. d4 {[%clk 0:02:59.6]} 6... a6 {[%clk 0:02:52.3]}
7. Bxc6 {[%clk 0:02:54.2]} 7... Nxc6 {[%clk 0:02:52.3]} 8. d5 {[%clk 0:02:54.4]}
8... Ne7 {[%clk 0:02:52.6]} 9. d6 {[%clk 0:02:54.9]} 9... Nc6 {[%clk 0:02:50.8]}
10. Qd5 {[%clk 0:02:27]} 10... O-O {[%clk 0:02:48.9]} 11. Bg5 {[%clk 0:02:25.5]}
11... Bf6 {[%clk 0:02:47.1]} 12. dxc7 {[%clk 0:02:24.9]} 12... Qe7 {[%clk
0:02:44.8]} 13. Bxf6 {[%clk 0:02:24.8]} 13... Qxf6 {[%clk 0:02:45.7]} 14. Rd1
{[%clk 0:02:20.5]} 14... b6 {[%clk 0:02:34.7]} 15. Na3 {[%clk 0:02:14.5]} 15...
Ra7 {[%clk 0:02:29.4]} 16. Nc4 {[%clk 0:02:09.1]} 16... Rxc7 {[%clk 0:02:27.8]}
17. Nxb6 {[%clk 0:02:00.1]} 17... Rd8 {[%clk 0:02:12.3]} 18. Qd6 {[%clk
0:01:54.2]} 18... Qxd6 {[%clk 0:02:10]} 19. Rxd6 {[%clk 0:01:55.1]} 19... Kf8
{[%clk 0:02:05.9]} 20. Rad1 {[%clk 0:01:49.8]} 20... Ke7 {[%clk 0:02:03.3]} 21.
R6d2 {[%clk 0:00:51.8]} 21... Rb7 {[%clk 0:01:57.7]} 22. Nd5+ {[%clk 0:00:50.2]}
22... Kf8 {[%clk 0:01:56.7]} 23. b3 {[%clk 0:00:49.3]} 23... h6 {[%clk
0:01:53.9]} 24. h4 {[%clk 0:00:47.5]} 24... a5 {[%clk 0:01:43.7]} 25. Ne3 {[%clk
0:00:44.7]} 25... Ke7 {[%clk 0:01:41.5]} 26. Ng4 {[%clk 0:00:44.3]} 26... d6
{[%clk 0:01:34.7]} 27. Ne3 {[%clk 0:00:36.4]} 27... Be6 {[%clk 0:01:31.8]} 28.
Ne1 {[%clk 0:00:30.6]} 28... h5 {[%clk 0:01:26.6]} 29. f3 {[%clk 0:00:30.6]}
29... a4 {[%clk 0:01:22.8]} 30. b4 {[%clk 0:00:29.7]} 30... Na7 {[%clk
0:01:19.5]} 31. Nd5+ {[%clk 0:00:22.2]} 31... Bxd5 {[%clk 0:01:18.1]} 32. Rxd5
{[%clk 0:00:23.1]} 32... Nb5 {[%clk 0:01:18.1]} 33. Rc1 {[%clk 0:00:21.3]} 33...
Rc8 {[%clk 0:01:14.8]} 34. Rd3 {[%clk 0:00:20.6]} 34... Na3 {[%clk 0:01:13.3]}
35. Kf2 {[%clk 0:00:18.8]} 35... Rxb4 {[%clk 0:01:12.3]} 36. cxb4 {[%clk
0:00:18]} 36... Rxc1 {[%clk 0:01:11.7]} 37. Rxa3 {[%clk 0:00:18.5]} 37... Rb1
{[%clk 0:01:08.4]} 38. Rxa4 {[%clk 0:00:18.4]} 38... Rb2+ {[%clk 0:01:09]} 39.
Kf1 {[%clk 0:00:17.4]} 39... Ke6 {[%clk 0:01:07.2]} 40. a3 {[%clk 0:00:17.3]}
40... f5 {[%clk 0:01:06.6]} 41. Ra5 {[%clk 0:00:17.1]} 41... fxe4 {[%clk
0:01:05.4]} 42. fxe4 {[%clk 0:00:17.2]} 42... Kf6 {[%clk 0:01:05.6]} 43. b5
{[%clk 0:00:16.7]} 43... g5 {[%clk 0:01:05.6]} 44. hxg5+ {[%clk 0:00:17.6]}
44... Kxg5 {[%clk 0:01:06.4]} 45. a4 {[%clk 0:00:17.7]} 45... Kf4 {[%clk
0:01:06.9]} 46. Ra6 {[%clk 0:00:17.8]} 46... Kxe4 {[%clk 0:01:04.6]} 47. Rxd6
{[%clk 0:00:16.4]} 47... Rb4 {[%clk 0:01:04.8]} 48. Ra6 {[%clk 0:00:16.5]} 48...
h4 {[%clk 0:01:02.3]} 49. b6 {[%clk 0:00:16.6]} 49... Rb2 {[%clk 0:00:59.4]} 50.
a5 {[%clk 0:00:15.7]} 50... Ke3 {[%clk 0:00:58.9]} 51. Ra7 {[%clk 0:00:15.7]}
51... e4 {[%clk 0:00:49.4]} 52. b7 {[%clk 0:00:14.8]} 52... Re2 {[%clk
0:00:41.9]} 53. a6 {[%clk 0:00:13.9]} 53... Rf2+ {[%clk 0:00:37.9]} 54. Kg1
{[%clk 0:00:13.6]} 54... Rb2 {[%clk 0:00:37.4]} 55. Ra8 {[%clk 0:00:13.6]} 55...
Ke2 {[%clk 0:00:37.7]} 56. b8=Q {[%clk 0:00:13.4]} 1-0